[Event "Goteborg Open 2024"]
[Site "Goteborgs Schackcentrum, Vegatan 20, Gothenburg, Sweden"]
[Date "2024.08.02"]
[Round "2.8"]
[White "Lennerstad, Allan"]
[Black "Andersson, Stig"]
[Result "0-1"]
[TimeControl "15 minutes + 5 seconds per move from move one (Round 1 - 4) / 90 minutes + 30 seconds per move from move one (Round 5 - 8)"]
[WhiteFideId "1723774"]
[BlackFideId "1731971"]
[WhiteElo "1950"]
[BlackElo "1889"]

1. d4 {[%clk 00:15:08]} {[%emt 00:00:02]} Nf6 {[%clk 00:15:07]} {[%emt
00:00:04]} 2. Nf3 {[%clk 00:15:12]} {[%emt 00:00:01]} d5 {[%clk 00:14:55]}
{[%emt 00:00:17]} 3. c4 {[%clk 00:15:14]} {[%emt 00:00:02]} e6 {[%clk
00:14:53]} {[%emt 00:00:08]} 4. Nc3 {[%clk 00:15:18]} {[%emt 00:00:01]} Be7
{[%clk 00:14:38]} {[%emt 00:00:19]} 5. Bg5 {[%clk 00:15:19]} {[%emt 00:00:05]}
c6 {[%clk 00:14:37]} {[%emt 00:00:06]} 6. e3 {[%clk 00:15:20]} {[%emt
00:00:05]} Nbd7 {[%clk 00:14:16]} {[%emt 00:00:25]} 7. Qc2 {[%clk 00:14:53]}
{[%emt 00:00:31]} Qa5 {[%clk 00:13:45]} {[%emt 00:00:36]} 8. Be2 {[%clk
00:14:06]} {[%emt 00:00:52]} h6 {[%clk 00:12:49]} {[%emt 00:01:02]} 9. Bxf6
{[%clk 00:13:38]} {[%emt 00:00:33]} Nxf6 {[%clk 00:12:24]} {[%emt 00:00:30]} 10.
O-O {[%clk 00:13:40]} {[%emt 00:00:04]} Bd6 {[%clk 00:11:52]} {[%emt 00:00:35]}
11. a3 {[%clk 00:13:13]} {[%emt 00:00:33]} Qd8 {[%clk 00:11:53]} {[%emt
00:00:03]} 12. b4 {[%clk 00:13:08]} {[%emt 00:00:11]} O-O {[%clk 00:11:38]}
{[%emt 00:00:20]} 13. b5 {[%clk 00:12:51]} {[%emt 00:00:22]} Qe7 {[%clk
00:11:14]} {[%emt 00:00:29]} 14. bxc6 {[%clk 00:11:22]} {[%emt 00:01:34]} bxc6
{[%clk 00:10:48]} {[%emt 00:00:31]} 15. Qa4 {[%clk 00:09:44]} {[%emt 00:01:43]}
Bd7 {[%clk 00:10:17]} {[%emt 00:00:35]} 16. c5 {[%clk 00:09:46]} {[%emt
00:00:04]} Bc7 {[%clk 00:10:15]} {[%emt 00:00:06]} 17. Bd3 {[%clk 00:09:34]}
{[%emt 00:00:17]} Rfb8 {[%clk 00:09:48]} {[%emt 00:00:32]} 18. Rab1 {[%clk
00:09:29]} {[%emt 00:00:11]} e5 {[%clk 00:09:45]} {[%emt 00:00:07]} 19. dxe5
{[%clk 00:09:12]} {[%emt 00:00:22]} Ng4 {[%clk 00:09:10]} {[%emt 00:00:40]} 20.
Qd4 {[%clk 00:07:17]} {[%emt 00:02:00]} Nxe5 {[%clk 00:09:03]} {[%emt
00:00:13]} 21. Be2 {[%clk 00:07:11]} {[%emt 00:00:11]} Nxf3+ {[%clk 00:08:16]}
{[%emt 00:00:51]} 22. Bxf3 {[%clk 00:07:15]} {[%emt 00:00:02]} Be5 {[%clk
00:08:05]} {[%emt 00:00:15]} 23. Qd3 {[%clk 00:06:41]} {[%emt 00:00:39]} Qxc5
{[%clk 00:07:38]} {[%emt 00:00:33]} 24. Ne2 {[%clk 00:06:06]} {[%emt 00:00:40]}
Qd6 {[%clk 00:07:29]} {[%emt 00:00:14]} 25. g3 {[%clk 00:05:55]} {[%emt
00:00:16]} Qf6 {[%clk 00:07:09]} {[%emt 00:00:24]} 26. Bg2 {[%clk 00:05:52]}
{[%emt 00:00:08]} Bf5 {[%clk 00:05:20]} {[%emt 00:01:54]} 27. e4 {[%clk
00:05:28]} {[%emt 00:00:30]} Bxe4 {[%clk 00:05:03]} {[%emt 00:00:22]} 28. Bxe4
{[%clk 00:05:30]} {[%emt 00:00:02]} dxe4 {[%clk 00:05:07]} {[%emt 00:00:02]} 29.
Qxe4 {[%clk 00:05:33]} {[%emt 00:00:02]} Re8 {[%clk 00:05:04]} {[%emt
00:00:07]} 30. Qg4 {[%clk 00:04:20]} {[%emt 00:01:19]} Bd6 {[%clk 00:04:41]}
{[%emt 00:00:28]} 31. a4 {[%clk 00:04:07]} {[%emt 00:00:18]} a5 {[%clk
00:04:29]} {[%emt 00:00:17]} 32. Nd4 {[%clk 00:03:49]} {[%emt 00:00:22]} Bb4
{[%clk 00:04:25]} {[%emt 00:00:09]} 33. Rbd1 {[%clk 00:03:37]} {[%emt
00:00:19]} Rad8 {[%clk 00:04:09]} {[%emt 00:00:21]} 34. Nc2 {[%clk 00:01:38]}
{[%emt 00:02:03]} c5 {[%clk 00:03:56]} {[%emt 00:00:18]} 35. Ne3 {[%clk
00:01:36]} {[%emt 00:00:07]} Rd4 {[%clk 00:03:45]} {[%emt 00:00:15]} 36. Qe2
{[%clk 00:01:35]} {[%emt 00:00:07]} Qd8 {[%clk 00:03:22]} {[%emt 00:00:27]} 37.
Qb5 {[%emt 00:00:34]} Rd2 {[%clk 00:02:56]} 38. Rxd2 {[%clk 00:01:31]} {[%emt
00:00:11]} Bxd2 {[%clk 00:02:57]} {[%emt 00:00:04]} 39. Nc4 {[%clk 00:01:34]}
{[%emt 00:00:03]} Bb4 {[%clk 00:02:55]} {[%emt 00:00:06]} 40. Ne3 {[%clk
00:01:34]} {[%emt 00:00:06]} Rf8 {[%clk 00:02:56]} {[%emt 00:00:05]} 41. Rd1
{[%clk 00:01:34]} {[%emt 00:00:05]} Qe8 {[%clk 00:02:58]} {[%emt 00:00:02]} 42.
Qxe8 {[%clk 00:01:09]} {[%emt 00:00:30]} Rxe8 {[%clk 00:03:01]} {[%emt
00:00:02]} 43. Kf1 {[%clk 00:01:12]} {[%emt 00:00:02]} g6 {[%clk 00:02:58]}
{[%emt 00:00:08]} 44. Ke2 {[%clk 00:01:13]} {[%emt 00:00:03]} Kg7 {[%clk
00:03:00]} {[%emt 00:00:03]} 45. Rd7 {[%clk 00:01:15]} {[%emt 00:00:04]} Re6
{[%clk 00:02:55]} {[%emt 00:00:10]} 46. Kd3 {[%clk 00:01:16]} {[%emt 00:00:03]}
h5 {[%clk 00:02:55]} {[%emt 00:00:05]} 47. f3 {[%clk 00:01:12]} {[%emt
00:00:10]} Re8 {[%clk 00:02:27]} {[%emt 00:00:32]} 48. h3 {[%clk 00:01:14]}
{[%emt 00:00:03]} Be1 {[%clk 00:02:27]} {[%emt 00:00:05]} 49. g4 {[%clk
00:01:17]} {[%emt 00:00:04]} Bf2 {[%clk 00:02:28]} {[%emt 00:00:03]} 50. Nc4
{[%clk 00:01:12]} {[%emt 00:00:10]} Be1 {[%clk 00:02:24]} {[%emt 00:00:08]} 51.
Nd6 {[%clk 00:01:10]} {[%emt 00:00:09]} Rf8 {[%clk 00:02:22]} {[%emt 00:00:06]}
52. Ne4 {[%clk 00:01:07]} {[%emt 00:00:07]} hxg4 {[%clk 00:02:22]} {[%emt
00:00:05]} 53. hxg4 {[%clk 00:01:11]} {[%emt 00:00:02]} Bb4 {[%clk 00:02:25]}
{[%emt 00:00:02]} 54. Kc4 {[%clk 00:01:14]} {[%emt 00:00:02]} Re8 {[%clk
00:02:13]} {[%emt 00:00:17]} 55. Nd6 {[%clk 00:01:14]} {[%emt 00:00:05]} Rf8
{[%clk 00:02:16]} {[%emt 00:00:02]} 56. Ne4 {[%clk 00:01:18]} Kg8 {[%clk
00:02:01]} {[%emt 00:00:20]} 57. Rc7 {[%clk 00:01:20]} {[%emt 00:00:04]} Rb8
{[%clk 00:01:53]} {[%emt 00:00:12]} 58. Nxc5 {[%clk 00:01:22]} {[%emt
00:00:04]} Bxc5 {[%clk 00:01:56]} {[%emt 00:00:01]} 59. Rxc5 {[%clk 00:00:55]}
{[%emt 00:00:32]} Rb4+ {[%clk 00:02:00]} {[%emt 00:00:01]} 60. Kc3 {[%clk
00:00:58]} {[%emt 00:00:02]} Rxa4 {[%clk 00:02:03]} {[%emt 00:00:03]} 61. Kb3
{[%clk 00:00:54]} {[%emt 00:00:09]} Ra1 {[%clk 00:02:06]} {[%emt 00:00:01]} 62.
Rc3 {[%clk 00:00:58]} {[%emt 00:00:02]} Kg7 {[%clk 00:02:06]} {[%emt 00:00:04]}
63. Kc4 {[%clk 00:00:55]} {[%emt 00:00:08]} Kf6 {[%clk 00:02:08]} {[%emt
00:00:02]} 64. Kd4 {[%clk 00:01:00]} {[%emt 00:00:01]} Ra4+ {[%clk 00:02:04]}
{[%emt 00:00:09]} 65. Ke3 {[%clk 00:01:04]} {[%emt 00:00:01]} Kg5 {[%clk
00:02:05]} {[%emt 00:00:03]} 66. Rc7 {[%clk 00:01:05]} {[%emt 00:00:04]} f5
{[%clk 00:02:04]} {[%emt 00:00:05]} 67. gxf5 {[%clk 00:00:56]} {[%emt
00:00:14]} Kxf5 {[%clk 00:01:57]} {[%emt 00:00:12]} 68. Rf7+ {[%clk 00:00:56]}
{[%emt 00:00:05]} Kg5 {[%clk 00:01:57]} {[%emt 00:00:05]} 69. Ra7 {[%clk
00:01:00]} {[%emt 00:00:03]} Ra3+ {[%clk 00:01:54]} {[%emt 00:00:08]} 70. Kf2
{[%clk 00:01:03]} {[%emt 00:00:01]} Kf4 {[%clk 00:01:45]} {[%emt 00:00:13]} 71.
Rf7+ {[%clk 00:01:07]} {[%emt 00:00:01]} Ke5 {[%clk 00:01:44]} {[%emt
00:00:07]} 72. Rg7 {[%clk 00:01:10]} {[%emt 00:00:02]} Kf6 {[%clk 00:01:47]}
{[%emt 00:00:02]} 73. Ra7 {[%clk 00:01:13]} {[%emt 00:00:02]} g5 {[%clk
00:01:48]} {[%emt 00:00:04]} 74. Kg3 {[%clk 00:01:15]} {[%emt 00:00:03]} Ra4
{[%clk 00:01:46]} {[%emt 00:00:07]} 75. Ra8 {[%clk 00:01:17]} {[%emt 00:00:02]}
Ra1 {[%clk 00:01:37]} {[%emt 00:00:15]} 76. Kg2 {[%clk 00:01:03]} {[%emt
00:00:19]} Ke5 {[%clk 00:01:36]} {[%emt 00:00:06]} 77. Re8+ {[%clk 00:01:03]}
{[%emt 00:00:05]} Kf4 {[%clk 00:01:38]} {[%emt 00:00:02]} 78. Rf8+ {[%clk
00:01:07]} {[%emt 00:00:02]} Ke3 {[%clk 00:01:38]} {[%emt 00:00:05]} 79. Re8+
{[%clk 00:01:11]} {[%emt 00:00:01]} Kf4 {[%clk 00:01:33]} {[%emt 00:00:09]} 80.
Rf8+ {[%clk 00:01:15]} {[%emt 00:00:02]} Ke5 {[%clk 00:01:36]} {[%emt
00:00:02]} 81. Re8+ {[%clk 00:01:19]} {[%emt 00:00:02]} Kf6 {[%clk 00:01:38]}
{[%emt 00:00:02]} 82. Rf8+ {[%clk 00:01:22]} {[%emt 00:00:02]} Kg7 {[%clk
00:01:41]} {[%emt 00:00:03]} 83. Ra8 {[%clk 00:01:26]} {[%emt 00:00:01]} Kg6
{[%clk 00:01:44]} {[%emt 00:00:02]} 84. Kf2 {[%clk 00:01:29]} {[%emt 00:00:02]}
Ra3 {[%clk 00:01:40]} {[%emt 00:00:08]} 85. Kg3 {[%clk 00:01:31]} {[%emt
00:00:02]} Ra4 {[%clk 00:01:38]} {[%emt 00:00:08]} 86. Rg8+ {[%clk 00:01:31]}
{[%emt 00:00:04]} Kf6 {[%clk 00:01:41]} {[%emt 00:00:03]} 87. Rf8+ {[%clk
00:01:35]} {[%emt 00:00:01]} Kg7 {[%clk 00:01:44]} {[%emt 00:00:02]} 88. Ra8
{[%clk 00:01:39]} Ra1 {[%clk 00:01:44]} {[%emt 00:00:06]} 89. Kf2 {[%clk
00:01:41]} {[%emt 00:00:02]} Kg6 {[%clk 00:01:39]} {[%emt 00:00:10]} 90. Rg8+
{[%clk 00:01:42]} {[%emt 00:00:04]} Kf6 {[%clk 00:01:39]} {[%emt 00:00:05]} 91.
Rf8+ {[%clk 00:01:45]} {[%emt 00:00:01]} Ke7 {[%clk 00:01:39]} {[%emt
00:00:05]} 92. Rg8 {[%clk 00:01:49]} {[%emt 00:00:02]} Kf6 {[%clk 00:01:43]} 93.
Rf8+ {[%clk 00:01:53]} {[%emt 00:00:01]} Kg7 {[%clk 00:01:47]} {[%emt
00:00:02]} 94. Ra8 {[%clk 00:01:56]} a4 {[%clk 00:01:48]} {[%emt 00:00:04]} 95.
Kg3 {[%clk 00:01:47]} {[%emt 00:00:13]} a3 {[%clk 00:01:50]} {[%emt 00:00:04]}
96. Kg4 {[%clk 00:01:43]} {[%emt 00:00:09]} a2 {[%clk 00:01:50]} {[%emt
00:00:05]} 97. Kf5 {[%clk 00:01:46]} {[%emt 00:00:03]} g4 {[%clk 00:01:41]}
{[%emt 00:00:13]} 98. Ra7+ {[%clk 00:01:45]} {[%emt 00:00:05]} Kf8 {[%clk
00:01:38]} {[%emt 00:00:08]} 99. Ra8+ {[%clk 00:01:32]} {[%emt 00:00:18]} Ke7
{[%clk 00:01:41]} {[%emt 00:00:02]} 100. Ra7+ {[%clk 00:01:36]} {[%emt
00:00:02]} Kd6 {[%clk 00:01:42]} {[%emt 00:00:04]} 101. Ra6+ {[%clk 00:01:40]}
{[%emt 00:00:01]} Kc5 {[%clk 00:01:43]} {[%emt 00:00:04]} 102. Ra5+ {[%clk
00:01:43]} {[%emt 00:00:02]} Kb4 {[%clk 00:01:45]} {[%emt 00:00:03]} 103. Rxa2
{[%clk 00:01:46]} {[%emt 00:00:02]} Rxa2 {[%clk 00:01:46]} {[%emt 00:00:04]}
104. fxg4 {[%clk 00:01:50]} {[%emt 00:00:01]} Kc5 {[%clk 00:01:41]} {[%emt
00:00:12]} 105. g5 {[%clk 00:01:51]} {[%emt 00:00:02]} Kd6 {[%clk 00:01:45]}
{[%emt 00:00:01]} 106. Kf6 {[%clk 00:01:56]} {[%emt 00:00:01]} Rf2 {[%clk
00:01:47]} {[%emt 00:00:02]} 107. Kg7 {[%clk 00:01:59]} {[%emt 00:00:02]} Ke7
{[%clk 00:01:51]} {[%emt 00:00:01]} 108. g6 {[%clk 00:02:03]} {[%emt 00:00:01]}
Rg2 {[%clk 00:01:51]} {[%emt 00:00:05]} 0-1

[Event "Goteborg Open 2024"]
[Site "Goteborgs Schackcentrum, Vegatan 20, Gothenburg, Sweden"]
[Date "2024.08.02"]
[Round "2.9"]
[White "Eldh, Hjalmar"]
[Black "Harila, Per"]
[Result "1-0"]
[TimeControl "15 minutes + 5 seconds per move from move one (Round 1 - 4) / 90 minutes + 30 seconds per move from move one (Round 5 - 8)"]
[WhiteFideId "1767968"]
[BlackFideId "1707248"]
[WhiteElo "1897"]
[BlackElo "1947"]

1. e4 {[%clk 00:15:09]} c5 {[%clk 00:15:09]} {[%emt 00:00:02]} 2. Nf3 {[%clk
00:15:12]} {[%emt 00:00:01]} g6 {[%clk 00:15:11]} {[%emt 00:00:03]} 3. c3
{[%clk 00:15:13]} {[%emt 00:00:05]} Bg7 {[%clk 00:15:05]} {[%emt 00:00:10]} 4.
d4 {[%clk 00:15:17]} {[%emt 00:00:01]} cxd4 {[%clk 00:15:09]} {[%emt 00:00:02]}
5. cxd4 {[%clk 00:15:20]} {[%emt 00:00:01]} d5 {[%clk 00:15:12]} {[%emt
00:00:01]} 6. e5 {[%clk 00:15:23]} {[%emt 00:00:03]} Nc6 {[%clk 00:15:14]}
{[%emt 00:00:04]} 7. h3 {[%clk 00:15:26]} {[%emt 00:00:02]} Nh6 {[%clk
00:15:16]} {[%emt 00:00:02]} 8. Bd3 {[%clk 00:15:28]} {[%emt 00:00:03]} Nf5
{[%clk 00:15:09]} {[%emt 00:00:09]} 9. Bxf5 {[%clk 00:15:27]} {[%emt 00:00:09]}
Bxf5 {[%clk 00:15:12]} {[%emt 00:00:02]} 10. Nc3 {[%clk 00:15:31]} {[%emt
00:00:02]} Qa5 {[%clk 00:13:02]} {[%emt 00:02:14]} 11. Qb3 {[%clk 00:13:09]}
{[%emt 00:02:27]} Nb4 {[%clk 00:13:00]} {[%emt 00:00:06]} 12. O-O {[%clk
00:12:36]} {[%emt 00:00:39]} O-O {[%clk 00:06:57]} {[%emt 00:06:08]} 13. Bd2
{[%clk 00:12:25]} {[%emt 00:00:14]} Bc2 {[%clk 00:05:58]} {[%emt 00:01:06]} 14.
Qa3 {[%clk 00:12:27]} {[%emt 00:00:03]} Qxa3 {[%clk 00:06:02]} {[%emt
00:00:01]} 15. bxa3 {[%clk 00:12:31]} {[%emt 00:00:02]} Nc6 {[%clk 00:05:57]}
{[%emt 00:00:10]} 16. Nxd5 {[%clk 00:12:11]} {[%emt 00:00:24]} Rfd8 {[%clk
00:05:43]} {[%emt 00:00:19]} 17. Nb4 {[%clk 00:12:02]} {[%emt 00:00:14]} Be4
{[%clk 00:05:26]} {[%emt 00:00:21]} 18. Nxc6 {[%clk 00:11:49]} {[%emt
00:00:19]} Bxc6 {[%clk 00:05:30]} {[%emt 00:00:01]} 19. Be3 {[%clk 00:11:38]}
{[%emt 00:00:16]} e6 {[%clk 00:05:31]} {[%emt 00:00:05]} 20. Nd2 {[%clk
00:11:04]} {[%emt 00:00:39]} Bf8 {[%clk 00:05:19]} {[%emt 00:00:17]} 21. Nc4
{[%clk 00:10:21]} {[%emt 00:00:46]} Rac8 {[%clk 00:05:02]} {[%emt 00:00:23]} 22.
Rfc1 {[%clk 00:08:19]} {[%emt 00:02:07]} h5 {[%clk 00:04:43]} {[%emt 00:00:24]}
23. Rc3 {[%clk 00:06:01]} {[%emt 00:02:22]} a6 {[%clk 00:03:53]} {[%emt
00:00:56]} 24. Rac1 {[%clk 00:06:01]} {[%emt 00:00:05]} Bd5 {[%clk 00:03:44]}
{[%emt 00:00:14]} 25. Bg5 {[%clk 00:05:21]} {[%emt 00:00:45]} Re8 {[%clk
00:02:51]} {[%emt 00:00:58]} 26. Nd6 {[%clk 00:05:22]} {[%emt 00:00:05]} Rxc3
{[%clk 00:02:52]} {[%emt 00:00:03]} 27. Rxc3 {[%clk 00:05:25]} {[%emt
00:00:02]} Rb8 {[%clk 00:02:15]} {[%emt 00:00:41]} 28. Rc7 {[%clk 00:05:07]}
{[%emt 00:00:24]} Bxa2 {[%clk 00:02:00]} {[%emt 00:00:21]} 29. Nxf7 {[%clk
00:04:41]} {[%emt 00:00:29]} b5 {[%clk 00:01:41]} {[%emt 00:00:26]} 30. Nd6
{[%clk 00:04:26]} {[%emt 00:00:19]} a5 {[%clk 00:01:35]} {[%emt 00:00:11]} 31.
Ne4 {[%clk 00:04:13]} {[%emt 00:00:17]} Bg7 {[%clk 00:01:36]} {[%emt 00:00:06]}
32. Nf6+ {[%clk 00:03:11]} {[%emt 00:01:07]} Kh8 {[%clk 00:01:21]} {[%emt
00:00:19]} 33. Bd2 {[%clk 00:02:22]} {[%emt 00:00:54]} Rf8 {[%clk 00:00:28]}
{[%emt 00:00:59]} 34. Nd7 {[%clk 00:01:27]} {[%emt 00:00:58]} Rf7 {[%clk
00:00:18]} {[%emt 00:00:17]} 35. Bxa5 {[%clk 00:01:02]} {[%emt 00:00:29]} Bd5
{[%clk 00:00:17]} {[%emt 00:00:07]} 36. Nc5 {[%clk 00:00:41]} {[%emt 00:00:26]}
Rxc7 {[%clk 00:00:13]} {[%emt 00:00:09]} 37. Bxc7 {[%clk 00:00:45]} {[%emt
00:00:01]} Bf8 {[%clk 00:00:14]} {[%emt 00:00:04]} 38. Bd6 {[%clk 00:00:45]}
{[%emt 00:00:04]} Bh6 {[%clk 00:00:18]} {[%emt 00:00:02]} 39. Kf1 {[%clk
00:00:35]} {[%emt 00:00:14]} Bc1 {[%clk 00:00:22]} {[%emt 00:00:02]} 40. Nd3
{[%clk 00:00:31]} {[%emt 00:00:08]} Bc4 {[%clk 00:00:24]} {[%emt 00:00:04]} 41.
Ke2 {[%clk 00:00:31]} {[%emt 00:00:05]} Bg5 {[%clk 00:00:24]} {[%emt 00:00:05]}
42. g3 {[%clk 00:00:32]} {[%emt 00:00:04]} Kh7 {[%clk 00:00:26]} {[%emt
00:00:02]} 43. f4 {[%clk 00:00:36]} {[%emt 00:00:01]} Bd8 {[%clk 00:00:30]}
{[%emt 00:00:02]} 44. Kd2 {[%clk 00:00:38]} {[%emt 00:00:03]} Ba5+ {[%clk
00:00:34]} {[%emt 00:00:01]} 45. Nb4 {[%clk 00:00:41]} Bb6 {[%clk 00:00:35]}
{[%emt 00:00:04]} 46. Bc5 {[%clk 00:00:41]} {[%emt 00:00:05]} Bd8 {[%clk
00:00:38]} {[%emt 00:00:02]} 47. Nc6 {[%clk 00:00:43]} {[%emt 00:00:04]} Bc7
{[%clk 00:00:41]} {[%emt 00:00:02]} 48. Kc3 {[%clk 00:00:46]} {[%emt 00:00:01]}
Bf1 {[%clk 00:00:41]} {[%emt 00:00:06]} 49. h4 {[%clk 00:00:48]} {[%emt
00:00:02]} Bg2 {[%clk 00:00:44]} {[%emt 00:00:02]} 50. Na7 {[%clk 00:00:50]}
{[%emt 00:00:03]} Be4 {[%clk 00:00:45]} 51. Kb4 {[%clk 00:00:52]} {[%emt
00:00:07]} Bd5 {[%clk 00:00:42]} {[%emt 00:00:09]} 52. Nxb5 {[%clk 00:00:54]}
{[%emt 00:00:03]} Bd8 {[%clk 00:00:44]} {[%emt 00:00:03]} 53. a4 {[%clk
00:00:56]} {[%emt 00:00:02]} g5 {[%clk 00:00:44]} {[%emt 00:00:05]} 54. fxg5
{[%clk 00:00:57]} {[%emt 00:00:04]} Kg6 {[%clk 00:00:49]} 55. Nd6 {[%clk
00:00:58]} {[%emt 00:00:04]} Bc7 {[%clk 00:00:38]} {[%emt 00:00:16]} 56. a5
{[%clk 00:00:55]} {[%emt 00:00:08]} Bxd6 {[%clk 00:00:42]} {[%emt 00:00:02]} 57.
exd6 {[%clk 00:00:59]} {[%emt 00:00:01]} Bc6 {[%clk 00:00:45]} {[%emt
00:00:01]} 58. a6 {[%clk 00:01:02]} {[%emt 00:00:02]} Kf7 {[%clk 00:00:49]} 59.
a7 {[%clk 00:01:03]} {[%emt 00:00:06]} Bd5 {[%clk 00:00:47]} {[%emt 00:00:06]}
60. d7 {[%clk 00:01:05]} {[%emt 00:00:02]} 1-0

[Event "Goteborg Open 2024"]
[Site "Goteborgs Schackcentrum, Vegatan 20, Gothenburg, Sweden"]
[Date "2024.08.02"]
[Round "2.10"]
[White "Green, David"]
[Black "Eklund, Rickard"]
[Result "1-0"]
[TimeControl "15 minutes + 5 seconds per move from move one (Round 1 - 4) / 90 minutes + 30 seconds per move from move one (Round 5 - 8)"]
[WhiteFideId "1769332"]
[BlackFideId "1789040"]
[WhiteElo "1946"]
[BlackElo "1595"]

1. e4 {[%clk 00:15:08]} {[%emt 00:00:02]} c5 {[%clk 00:15:10]} {[%emt
00:00:01]} 2. Nf3 {[%clk 00:15:11]} {[%emt 00:00:02]} d6 {[%clk 00:15:14]} 3.
d4 {[%clk 00:15:10]} {[%emt 00:00:05]} cxd4 {[%clk 00:15:17]} {[%emt 00:00:02]}
4. Nxd4 {[%clk 00:15:14]} {[%emt 00:00:01]} Nf6 {[%clk 00:15:20]} {[%emt
00:00:03]} 5. Nc3 {[%clk 00:15:13]} {[%emt 00:00:06]} a6 {[%clk 00:15:23]}
{[%emt 00:00:02]} 6. h3 {[%clk 00:15:06]} {[%emt 00:00:11]} e6 {[%clk
00:15:18]} {[%emt 00:00:10]} 7. Be3 {[%clk 00:14:44]} {[%emt 00:00:28]} Nc6
{[%clk 00:15:16]} {[%emt 00:00:07]} 8. Qd2 {[%clk 00:14:36]} {[%emt 00:00:12]}
Bd7 {[%clk 00:14:43]} {[%emt 00:00:38]} 9. Be2 {[%clk 00:13:39]} {[%emt
00:01:02]} Rc8 {[%clk 00:14:41]} {[%emt 00:00:08]} 10. O-O {[%clk 00:13:26]}
{[%emt 00:00:18]} b5 {[%clk 00:14:17]} {[%emt 00:00:29]} 11. a3 {[%clk
00:12:49]} {[%emt 00:00:42]} Ne5 {[%clk 00:13:41]} {[%emt 00:00:40]} 12. Rad1
{[%clk 00:12:31]} {[%emt 00:00:23]} Be7 {[%clk 00:13:34]} {[%emt 00:00:12]} 13.
Rfe1 {[%clk 00:12:12]} {[%emt 00:00:24]} O-O {[%clk 00:13:32]} {[%emt
00:00:07]} 14. Bf4 {[%clk 00:08:12]} {[%emt 00:04:05]} Nc4 {[%clk 00:12:10]}
{[%emt 00:01:28]} 15. Bxc4 {[%clk 00:07:52]} {[%emt 00:00:25]} Rxc4 {[%clk
00:12:13]} {[%emt 00:00:02]} 16. Nf3 {[%clk 00:06:06]} {[%emt 00:01:50]} e5
{[%clk 00:11:54]} {[%emt 00:00:25]} 17. Bg5 {[%clk 00:05:14]} {[%emt 00:00:57]}
Be6 {[%clk 00:11:10]} {[%emt 00:00:50]} 18. Qe3 {[%clk 00:01:53]} {[%emt
00:03:25]} Qc7 {[%clk 00:10:49]} {[%emt 00:00:26]} 19. Nd2 {[%clk 00:00:37]}
{[%emt 00:01:20]} Rc5 {[%clk 00:10:15]} {[%emt 00:00:39]} 20. Nb3 {[%clk
00:00:09]} {[%emt 00:00:34]} Rc6 {[%clk 00:10:15]} {[%emt 00:00:05]} 21. Rd3
{[%clk 00:00:07]} {[%emt 00:00:07]} Rd8 {[%clk 00:09:58]} {[%emt 00:00:22]} 22.
Red1 {[%clk 00:00:11]} {[%emt 00:00:01]} Rc8 {[%clk 00:09:11]} {[%emt
00:00:51]} 23. Kh1 {[%clk 00:00:07]} {[%emt 00:00:10]} Rc4 {[%clk 00:08:33]}
{[%emt 00:00:43]} 24. Kg1 {[%clk 00:00:07]} {[%emt 00:00:04]} Qb7 {[%clk
00:08:09]} {[%emt 00:00:29]} 25. Re1 {[%clk 00:00:07]} {[%emt 00:00:05]} R4c6
{[%clk 00:07:44]} {[%emt 00:00:31]} 26. Na5 {[%clk 00:00:11]} {[%emt 00:00:01]}
Qc7 {[%clk 00:07:41]} {[%emt 00:00:07]} 27. Nxc6 {[%clk 00:00:15]} {[%emt
00:00:01]} Qxc6 {[%clk 00:07:45]} {[%emt 00:00:01]} 28. f4 {[%clk 00:00:15]}
{[%emt 00:00:05]} d5 {[%clk 00:07:47]} {[%emt 00:00:03]} 29. exd5 {[%clk
00:00:09]} {[%emt 00:00:12]} Nxd5 {[%clk 00:07:51]} {[%emt 00:00:01]} 30. Nxd5
{[%clk 00:00:09]} {[%emt 00:00:06]} Bc5 {[%clk 00:07:54]} {[%emt 00:00:01]} 31.
Ne7+ {[%clk 00:00:10]} {[%emt 00:00:04]} Bxe7 {[%clk 00:07:56]} {[%emt
00:00:02]} 32. Bxe7 {[%clk 00:00:14]} {[%emt 00:00:01]} Qxc2 {[%clk 00:08:00]}
{[%emt 00:00:01]} 33. Red1 {[%clk 00:00:12]} {[%emt 00:00:08]} h6 {[%clk
00:07:51]} {[%emt 00:00:14]} 34. Qxe5 {[%clk 00:00:11]} {[%emt 00:00:05]} Bc4
{[%clk 00:07:39]} {[%emt 00:00:17]} 35. Rd8+ {[%clk 00:00:14]} {[%emt
00:00:03]} Rxd8 {[%clk 00:07:43]} {[%emt 00:00:01]} 36. Rxd8+ {[%clk 00:00:13]}
{[%emt 00:00:06]} Kh7 {[%clk 00:07:37]} {[%emt 00:00:11]} 37. Kh2 {[%clk
00:00:08]} {[%emt 00:00:10]} Bf1 {[%clk 00:07:29]} {[%emt 00:00:12]} 38. Qd5
{[%clk 00:00:08]} {[%emt 00:00:05]} Qc1 {[%clk 00:07:21]} {[%emt 00:00:14]} 39.
Bh4 {[%emt 00:00:06]} Qxf4+ {[%clk 00:07:18]} {[%emt 00:00:07]} 40. Bg3 {[%clk
00:00:12]} {[%emt 00:00:01]} Qc1 {[%clk 00:07:16]} {[%emt 00:00:07]} 41. Qf5+
{[%clk 00:00:13]} {[%emt 00:00:03]} 1-0